fUST/lending_fUST_20240804
["ID","MTS","AMOUNT","RATE_DAILY","PERIOD"]
[334046180,1722705045159,-292.4534122,0.00014794,2]
[334046181,1722705045168,-589.79,0.00014794,2]
[334046182,1722705045178,-1573.39,0.00014794,2]
[334046183,1722705045189,-612.29,0.00014794,2]
[334046184,1722705045198,-500.0,0.00014794,2]
[334046185,1722705045207,-500.0,0.00014794,2]
[334046186,1722705045216,-500.0,0.00014794,2]
[334046187,1722705045225,-500.0,0.00014794,2]
[334046188,1722705045234,-500.0,0.00014794,2]
[334046189,1722705045244,-565.91,0.00014794,2]
[334046190,1722705045253,-500.0,0.00014794,2]
[334046191,1722705045263,-500.0,0.00014794,2]
[334046192,1722705045272,-935.62,0.00014794,2]
[334046193,1722705045282,-500.0,0.00014794,2]
[334046194,1722705045292,-500.0,0.00014794,2]
[334046195,1722705045301,-525.39,0.00014843,2]
[334046196,1722705045312,-766.99068654,0.00014899,2]
[334046197,1722705045322,-1826.58709486,0.00015,2]
[334046199,1722705045331,-154.79277577,0.00015,2]
[334046200,1722705045341,-154.74467129,0.00015,2]
[334046202,1722705045351,-1108.72341291,0.00015,2]
[334046204,1722705045360,-6250.03226319,0.00015058,2]
[334046205,1722705045370,-500.0,0.00015067,2]
[334046207,1722705045379,-570.32748409,0.00015067,2]
[334046209,1722705045389,-500.0,0.00015067,2]
[334046210,1722705045399,-500.0,0.00015067,2]
[334046212,1722705045408,-500.0,0.00015067,2]
[334046213,1722705045417,-500.0,0.00015067,2]
[334046215,1722705045428,-500.0,0.00015067,2]
[334046217,1722705045442,-500.0,0.00015067,2]
[334046218,1722705045452,-196.23560917,0.00015067,2]
[334046220,1722705045462,-500.0,0.00015067,2]
[334046222,1722705045471,-500.0,0.00015067,2]
[334046223,1722705045481,-500.0,0.00015067,2]
[334046224,1722705045490,-500.0,0.00015067,2]
[334046225,1722705045499,-3157.19387874,0.00015068,5]
[334046226,1722705045512,-500.0,0.00015068,2]
[334046227,1722705045522,-500.0,0.00015068,2]
[334046228,1722705045532,-500.0,0.00015068,2]
[334046229,1722705045541,-500.0,0.00015068,2]
[334046230,1722705045551,-500.0,0.00015068,2]
[334046231,1722705045560,-500.0,0.00015068,2]
[334046232,1722705045570,-500.0,0.00015068,2]
[334046233,1722705045579,-500.0,0.00015068,2]
[334046234,1722705045589,-500.0,0.00015068,2]
[334046235,1722705045599,-500.0,0.00015068,2]
[334046236,1722705045608,-500.0,0.00015068,2]
[334046237,1722705045618,-500.0,0.00015068,2]
[334046238,1722705045628,-500.0,0.00015068,2]
[334046239,1722705045637,-500.0,0.00015068,2]
[334046240,1722705045646,-500.0,0.00015068,2]
[334046241,1722705045656,-500.0,0.00015068,2]
[334046242,1722705045666,-500.0,0.00015068,2]
[334046243,1722705045675,-500.0,0.00015068,2]
[334046244,1722705045687,-500.0,0.00015068,2]
[334046245,1722705045696,-500.0,0.00015068,2]
[334046246,1722705045705,-500.0,0.00015068,2]
[334046247,1722705045714,-500.0,0.00015068,2]
[334046248,1722705045724,-151.0,0.00015068,2]
[334046249,1722705045734,-151.0,0.00015068,2]
[334046250,1722705045744,-424.730846,0.00015068,2]
[334046251,1722705045753,-424.730846,0.00015068,2]
[334046252,1722705045763,-500.0,0.00015068,2]
[334046253,1722705045772,-500.0,0.00015068,2]
[334046254,1722705045782,-500.0,0.00015068,2]
[334046255,1722705045791,-500.0,0.00015068,2]
[334046256,1722705045800,-500.0,0.00015068,2]
[334046257,1722705045810,-189.931541,0.00015068,2]
[334046258,1722705045820,-500.0,0.00015068,2]
[334046259,1722705045830,-515.82,0.00015068,2]
[334046260,1722705045839,-189.931541,0.00015068,2]
[334046261,1722705045849,-1617.91,0.00015068,2]
[334046262,1722705045857,-500.0,0.00015068,2]
[334046264,1722705045868,-151.0,0.00015068,2]
[334046265,1722705045877,-151.0,0.00015068,2]
[334046266,1722705045887,-151.0,0.00015068,2]
[334046267,1722705045896,-151.0,0.00015068,2]
[334046268,1722705045906,-622.92,0.00015068,2]
[334046269,1722705045916,-151.0,0.00015068,2]
[334046270,1722705045925,-500.0,0.00015068,2]
[334046271,1722705045937,-151.0,0.00015068,2]
[334046272,1722705045947,-500.0,0.00015068,2]
[334046273,1722705045956,-500.0,0.00015068,2]
[334046274,1722705045966,-151.0,0.00015068,2]
[334046275,1722705045978,-500.0,0.00015068,2]
[334046276,1722705045988,-500.0,0.00015068,2]
[334046277,1722705045997,-500.0,0.00015068,2]
[334046278,1722705046007,-249.061324,0.00015068,2]
[334046279,1722705046016,-500.0,0.00015068,2]
[334046280,1722705046026,-249.061324,0.00015068,2]
[334046281,1722705046036,-589.79,0.00015068,2]
[334046282,1722705046045,-414.098469,0.00015068,2]
[334046283,1722705046055,-414.098469,0.00015068,2]
[334046284,1722705046064,-1573.39,0.00015068,2]
[334046286,1722705046075,-612.29,0.00015068,2]
[334046288,1722705046086,-151.0,0.00015068,2]
[334046290,1722705046095,-151.0,0.00015068,2]
[334046291,1722705046105,-500.0,0.00015068,2]
[334046293,1722705046114,-500.0,0.00015068,2]
[334046295,1722705046124,-500.0,0.00015068,2]
[334046297,1722705046133,-500.0,0.00015068,2]
[334046298,1722705046143,-500.0,0.00015068,2]
[334046300,1722705046154,-565.91,0.00015068,2]
[334046301,1722705046163,-151.0,0.00015068,2]
[334046309,1722705046251,-205.174275,0.00015068,2]
[334046311,1722705046261,-205.174275,0.00015068,2]
[334046312,1722705046272,-151.0,0.00015068,2]
[334046313,1722705046282,-438.09734793,0.00015068,2]
[334046314,1722705046292,-935.62,0.00015068,2]
[334046315,1722705046303,-500.0,0.00015068,2]
[334046316,1722705046313,-500.0,0.00015068,2]
[334046317,1722705046323,-945.05438579,0.000151,2]
[334046318,1722705046333,-151.861099,0.000151,2]
[334046319,1722705046342,-352.15872,0.000151,2]
[334046320,1722705046351,-352.15872,0.000151,2]
[334046321,1722705046361,-151.0,0.000151,2]
[334046322,1722705046371,-525.39,0.00015127,2]
[334046324,1722705046381,-200.0,0.00015203,2]
[334046325,1722705046390,-200.0,0.00015203,2]
[334046326,1722705046400,-151.0,0.00015341,2]
[334046327,1722705046409,-500.0,0.00015342,2]
[334046328,1722705046419,-523.3,0.00015342,2]
[334046329,1722705046429,-226.47179296,0.00015342,2]
[334046330,1722705046444,-500.0,0.00015342,2]
[334046331,1722705046456,-500.0,0.00015342,2]
[334046332,1722705046466,-500.0,0.00015342,2]
[334046333,1722705046477,-500.0,0.00015342,2]
[334046334,1722705046488,-500.0,0.00015342,2]
[334046335,1722705046498,-500.0,0.00015342,2]
[334046337,1722705046508,-500.0,0.00015342,2]
[334046338,1722705046519,-500.0,0.00015342,2]
[334046339,1722705046529,-500.0,0.00015342,2]
[334046340,1722705046540,-500.0,0.00015342,2]
[334046341,1722705046549,-500.0,0.00015342,2]
[334046342,1722705046559,-500.0,0.00015342,2]
[334046343,1722705046569,-500.0,0.00015342,2]
[334046345,1722705046579,-500.0,0.00015342,2]
[334046346,1722705046589,-500.0,0.00015342,2]
[334046347,1722705046599,-500.0,0.00015342,2]
[334046348,1722705046609,-500.0,0.00015342,2]
[334046349,1722705046619,-500.0,0.00015342,2]
[334046350,1722705046629,-500.0,0.00015342,2]
[334046352,1722705046639,-500.0,0.00015342,2]
[334046354,1722705046649,-500.0,0.00015342,2]
[334046355,1722705046660,-515.82,0.00015342,2]
[334046356,1722705046670,-1617.91,0.00015342,2]
[334046357,1722705046683,-622.92,0.00015342,2]
[334046358,1722705046694,-215.93347307,0.00015342,2]
[334046359,1722705046704,-500.0,0.00015342,2]
[334046360,1722705046713,-500.0,0.00015342,2]
[334046361,1722705046723,-500.0,0.00015342,2]
[334046362,1722705046732,-500.0,0.00015342,2]
[334046363,1722705046742,-500.0,0.00015342,2]
[334046364,1722705046752,-589.79,0.00015342,2]
[334046366,1722705046763,-1573.39,0.00015342,2]
[334046368,1722705046774,-612.29,0.00015342,2]
[334046370,1722705046784,-500.0,0.00015342,2]
[334046371,1722705046794,-289.67963583,0.00015342,2]
[334046372,1722705046804,-500.0,0.00015342,2]
[334046373,1722705046814,-500.0,0.00015342,2]
[334046374,1722705046823,-500.0,0.00015342,2]
[334046375,1722705046833,-565.91,0.00015342,2]
[334046376,1722705046842,-935.62,0.00015342,2]
[334046377,1722705046852,-500.0,0.00015342,2]
[334046378,1722705046862,-1410.0,0.00015497,2]
[334046379,1722705046872,-6250.03226319,0.00015587,2]
[334046380,1722705046882,-1685.61344547,0.00015598,2]
[334046381,1722705046892,-525.39,0.00015614,2]
[334046382,1722705046901,-151.0,0.00015615,2]
[334046383,1722705046912,-500.0,0.00015616,2]
[334046384,1722705046921,-500.0,0.00015616,2]
[334046385,1722705046933,-500.0,0.00015616,2]
[334046387,1722705046943,-500.0,0.00015616,2]
[334046389,1722705046953,-315.33053325,0.00015616,2]
[334046390,1722705046963,-500.0,0.00015616,2]
[334046392,1722705046973,-500.0,0.00015616,2]
[334046394,1722705046982,-500.0,0.00015616,2]
[334046396,1722705046992,-178.2956041,0.00015616,2]
[334046398,1722705047001,-500.0,0.00015616,2]
[334046400,1722705047011,-500.0,0.00015616,2]
[334046402,1722705047021,-500.0,0.00015616,2]
[334046404,1722705047031,-500.0,0.00015616,2]
[334046406,1722705047041,-500.0,0.00015616,2]
[334046408,1722705047051,-500.0,0.00015616,2]
[334046411,1722705047061,-500.0,0.00015616,2]
[334046412,1722705047071,-515.82,0.00015616,2]
[334046414,1722705047080,-1617.91,0.00015616,2]
[334046416,1722705047090,-622.92,0.00015616,2]
[334046417,1722705047100,-500.0,0.00015616,2]
[334046418,1722705047110,-500.0,0.00015616,2]
[334046419,1722705047120,-500.0,0.00015616,2]
[334046420,1722705047129,-500.0,0.00015616,2]
[334046421,1722705047139,-589.79,0.00015616,2]
[334046422,1722705047149,-1573.39,0.00015616,2]
[334046423,1722705047158,-612.29,0.00015616,2]
[334046424,1722705047168,-500.0,0.00015616,2]
[334046425,1722705047177,-500.0,0.00015616,2]
[334046426,1722705047193,-500.0,0.00015616,2]
[334046427,1722705047202,-500.0,0.00015616,2]
[334046428,1722705047211,-565.91,0.00015616,2]
[334046429,1722705047220,-935.62,0.00015616,2]
[334046430,1722705047229,-500.0,0.00015616,2]
[334046431,1722705047238,-150.0,0.00015654,2]
[334046432,1722705047248,-150.0,0.00015654,2]
[334046433,1722705047257,-506.0,0.00015654,2]
[334046434,1722705047266,-525.39,0.00015696,2]
[334046435,1722705047275,-151.0,0.00015697,2]
[334046436,1722705047283,-151.0,0.00015697,2]
[334046437,1722705047293,-12500.0645264,0.00015697,2]
[334046438,1722705047302,-9378.71143713,0.00015698,2]
[334046439,1722705047410,-3121.35308927,0.00015698,2]
[334046440,1722705047419,-3200.0,0.00015701,2]
[334046441,1722705047430,-525.39,0.00015706,2]
[334046442,1722705047444,-525.39,0.00015706,2]
[334046443,1722705047453,-7718.25091073,0.00015707,2]
[334046444,1722705047482,-500.0,0.00013698,2]
[334046445,1722705047492,-3117.91055476,0.00015707,2]
[334046446,1722705047504,-1075.48864695,0.00015707,2]
[334046447,1722705047519,-8804.12468632,0.00015707,2]
[334046448,1722705047530,-40.84462881,0.00015707,2]
[334046449,1722705047540,-262.90652757,0.00015707,2]
[334046450,1722705047551,-3121.38755199,0.00015707,2]
[334046451,1722705047561,-171.85174116,0.00015707,2]
[334046452,1722705047619,-23.90721053,0.00015707,2]
[334046453,1722705047690,-209.81495165,9.899e-05,2]
[334046454,1722705047699,-160.15094004,9.999e-05,2]
[334046455,1722705047708,-500.0,0.00013972,2]
[334046456,1722705047717,-500.0,0.00014246,2]
[334046457,1722705047726,-2311.86363363,0.00015707,2]
[334046458,1722705047738,-548.53406688,0.00015707,2]
[334046459,1722705047749,-613.5885,0.00015707,2]
[334046460,1722705047760,-1901.4879969,0.00015707,2]
[334046462,1722705054640,154.76012181,0.00027,120]
[334046463,1722705073344,150.5,0.000178,120]
[334046465,1722705073573,150.5,0.000178,120]
[334046466,1722705073825,150.5,0.0001779,120]
[334046467,1722705073983,150.5,0.000178,120]
[334046468,1722705074063,150.5,0.0001779,120]
[334046469,1722705074299,150.5,0.0001778,120]
[334046470,1722705074479,150.5,0.0001779,120]
[334046471,1722705074552,202.23,0.0001778,120]
[334046472,1722705074921,150.5,0.0001778,120]
[334046473,1722705093571,247.29746875,0.00027,120]
[334046475,1722705193355,188.0,0.000178,120]
[334046476,1722705193837,188.0,0.0001779,120]
[334046477,1722705194313,188.0,0.0001778,120]
[334046482,1722705235535,534.0,0.00025,60]
[334046484,1722705357750,1634.13,0.00027,120]
[334046485,1722705390768,200.0,0.00026098,120]
[334046486,1722705434683,150.5,0.000178,120]
[334046487,1722705435137,150.5,0.0001779,120]
[334046488,1722705435640,150.5,0.0001778,120]
[334046498,1722705674539,150.5,0.000178,120]
[334046499,1722705674992,150.5,0.0001779,120]
[334046500,1722705675471,150.5,0.0001778,120]
[334046502,1722705795865,189.79,0.000178,120]
[334046503,1722705915115,150.5,0.000178,120]
[334046504,1722705915584,268.18,0.0001779,120]
[334046510,1722705946117,-600.0,9.701e-05,2]
[334046511,1722705946140,-219.28567997,9.998e-05,2]
[334046512,1722706031106,-380.71432003,9.898e-05,2]
[334046513,1722706031128,-138.92225113,9.997e-05,2]
[334046518,1722706110020,1576.31612899,0.0002,120]
[334046521,1722706123488,302.6381,0.00027,120]
[334046522,1722706123755,628.22195556,0.0002336,120]
[334046523,1722706124263,201.3876716,0.0002525,120]
[334046524,1722706125620,916.26317139,0.00023,120]
[334046525,1722706126766,2323.58397432,0.00025,60]
[334046526,1722706127361,1005.81425832,0.00025,120]
[334046527,1722706127606,611.92290843,0.00025,120]
[334046528,1722706128334,1611.86990931,0.00027,120]
[334046529,1722706128779,739.53337176,0.00027,120]
[334046530,1722706129191,777.85200985,0.00027,120]
[334046531,1722706144051,152.11,0.00027,120]
[334046532,1722706150215,-362.07774887,9.897e-05,2]
[334046533,1722706150241,-300.0,9.996e-05,2]
[334046534,1722706150264,-300.0,9.996e-05,2]
[334046535,1722706150285,-16287.01982776,9.997e-05,2]
[334046536,1722706150306,-1009.97257575,9.997e-05,2]
[334046537,1722706150329,-3601.91477368,9.997e-05,2]
[334046538,1722706150352,-156.71892504,9.999e-05,2]
[334046539,1722706150373,-694.06857466,9.999e-05,2]
[334046540,1722706150394,-600.80373264,9.999e-05,2]
[334046541,1722706150414,-224.13908649,9.999e-05,2]
[334046542,1722706150436,-187.64611561,9.999e-05,2]
[334046543,1722706150459,-727.46839186,9.999e-05,2]
[334046544,1722706150481,-532.07679789,9.999e-05,2]
[334046545,1722706150503,-779.59941017,9.999e-05,2]
[334046546,1722706150539,-154.76012181,9.999e-05,2]
[334046547,1722706150562,-319.70105146,9.999e-05,2]
[334046548,1722706150588,-163.05415597,9.999e-05,2]
[334046549,1722706150612,-849.3304683,9.999e-05,2]
[334046550,1722706150635,-231.66735085,9.999e-05,2]
[334046551,1722706150658,-342.02067389,9.999e-05,2]
[334046552,1722706150680,-403.7082582,9.999e-05,2]
[334046553,1722706150703,-156.95333335,9.999e-05,2]
[334046554,1722706150726,-426.89711274,9.999e-05,2]
[334046555,1722706150752,-154.76012181,9.999e-05,2]
[334046556,1722706150776,-205.17089141,9.999e-05,2]
[334046557,1722706150798,-434.6287768,9.999e-05,2]
[334046558,1722706150820,-163.12325379,9.999e-05,2]
[334046559,1722706150846,-246.69977343,9.999e-05,2]
[334046560,1722706150869,-287.62828496,0.0001,2]
[334046561,1722706150893,-185.0,0.00010996,2]
[334046562,1722706154036,650.43888062,9.899e-05,2]
[334046563,1722706162130,-2423.82974967,9.899e-05,2]
[334046564,1722706162159,-1178.20671352,9.899e-05,2]
[334046565,1722706162180,-734.83048046,9.997e-05,2]
[334046566,1722706162203,-7931.55807881,0.00011762,2]
[334046579,1722706233900,-273.37336231,9.9e-05,2]
[334046580,1722706233922,-2905.85283069,0.00011762,2]
[334046600,1722706238602,-3601.91477368,0.00011762,2]
[334046601,1722706238612,-14062.5890905,0.00011762,2]
[334046602,1722706238623,-167.40056,0.00012986,2]
[334046604,1722706238633,-630.0,0.00013,2]
[334046606,1722706238642,-1254.13726686,0.00013597,2]
[334046608,1722706238652,-200.0,0.00013673,2]
[334046609,1722706238662,-200.0,0.00013673,2]
[334046610,1722706238671,-39408.7662178,0.00013686,2]
[334046611,1722706238680,-3904.06,0.00013687,2]
[334046612,1722706238689,-63003.8375032,0.00013688,2]
[334046613,1722706238699,-3904.06,0.00013697,2]
[334046614,1722706238708,-3904.06,0.00013697,2]
[334046615,1722706238718,-3904.06,0.00013697,2]
[334046616,1722706238728,-550.64504936,0.00013698,2]
[334046617,1722706238738,-500.0,0.00013698,2]
[334046618,1722706238747,-214.90381116,0.00013698,2]
[334046619,1722706238757,-502.78378867,0.00013698,2]
[334046620,1722706238769,-471.75702461,0.00013698,2]
[334046621,1722706238780,-500.0,0.00013698,2]
[334046622,1722706238789,-504.15839668,0.00013698,2]
[334046623,1722706238799,-500.0,0.00013698,2]
[334046624,1722706238808,-309.44049425,0.00013698,2]
[334046625,1722706238818,-500.0,0.00013698,2]
[334046626,1722706238828,-500.0,0.00013698,2]
[334046627,1722706238838,-500.0,0.00013698,2]
[334046628,1722706238850,-500.0,0.00013698,2]
[334046629,1722706238860,-500.0,0.00013698,2]
[334046630,1722706238870,-500.0,0.00013698,2]
[334046631,1722706238879,-500.0,0.00013698,2]
[334046632,1722706238889,-500.0,0.00013698,2]
[334046633,1722706239000,-500.0,0.00013698,2]
[334046634,1722706239010,-500.0,0.00013698,2]
[334046635,1722706239020,-500.0,0.00013698,2]
[334046636,1722706239031,-175.13000315,0.00013698,2]
[334046637,1722706239042,-162.81818846,0.00013698,2]
[334046638,1722706239053,-500.0,0.00013698,2]
[334046639,1722706239063,-500.0,0.00013698,2]
[334046641,1722706239073,-500.0,0.00013698,2]
[334046643,1722706239083,-500.0,0.00013698,2]
[334046645,1722706239093,-500.0,0.00013698,2]
[334046647,1722706239103,-500.0,0.00013698,2]
[334046648,1722706239113,-459.8037636,0.00013698,2]
[334046650,1722706239123,-500.0,0.00013698,2]
[334046652,1722706239132,-500.0,0.00013698,2]
[334046654,1722706239142,-500.0,0.00013698,2]
[334046656,1722706239152,-500.0,0.00013698,2]
[334046657,1722706239162,-500.0,0.00013698,2]
[334046658,1722706239172,-500.0,0.00013698,2]
[334046659,1722706239181,-500.0,0.00013698,2]
[334046661,1722706239191,-500.0,0.00013698,2]
[334046663,1722706239200,-500.0,0.00013698,2]
[334046665,1722706239211,-500.0,0.00013698,2]
[334046667,1722706239221,-500.0,0.00013698,2]
[334046669,1722706239231,-464.43614291,0.00013698,2]
[334046671,1722706239240,-500.0,0.00013698,2]
[334046672,1722706239249,-500.0,0.00013698,2]
[334046673,1722706239259,-500.0,0.00013698,2]
[334046674,1722706239269,-500.0,0.00013698,2]
[334046675,1722706239279,-406.02465874,0.00013698,2]
[334046676,1722706239289,-500.0,0.00013698,2]
[334046677,1722706239298,-500.63198735,0.00013698,2]
[334046678,1722706239308,-500.0,0.00013698,2]
[334046679,1722706239317,-415.28690629,0.00013698,2]
[334046680,1722706239327,-500.0,0.00013698,2]
[334046681,1722706239336,-500.0,0.00013698,2]
[334046682,1722706239348,-500.0,0.00013698,2]
[334046683,1722706239358,-500.0,0.00013698,2]
[334046684,1722706239368,-500.0,0.00013698,2]
[334046685,1722706239378,-500.0,0.00013698,2]
[334046686,1722706239388,-500.0,0.00013698,2]
[334046687,1722706239398,-500.0,0.00013698,2]
[334046688,1722706239409,-396.76220915,0.00013698,2]
[334046689,1722706239418,-500.0,0.00013698,2]
[334046690,1722706239427,-541.44526863,0.00013698,2]
[334046691,1722706239439,-500.0,0.00013698,2]
[334046692,1722706239450,-500.0,0.00013698,2]
[334046693,1722706239463,-500.0,0.00013698,2]
[334046694,1722706239473,-500.0,0.00013698,2]
[334046695,1722706239484,-500.0,0.00013698,2]
[334046696,1722706239495,-500.0,0.00013698,2]
[334046697,1722706239505,-500.0,0.00013698,2]
[334046698,1722706239515,-648.26335558,0.00013698,2]
[334046699,1722706239525,-500.0,0.00013698,2]
[334046700,1722706239535,-500.0,0.00013698,2]
[334046701,1722706239546,-500.0,0.00013698,2]
[334046702,1722706239555,-500.0,0.00013698,2]
[334046703,1722706239565,-500.0,0.00013698,2]
[334046704,1722706239575,-240.97595881,0.00013698,2]
[334046705,1722706239584,-500.0,0.00013698,2]
[334046706,1722706239594,-422.06808385,0.00013698,2]
[334046707,1722706239604,-500.0,0.00013698,2]
[334046708,1722706239614,-286.02453613,0.00013698,2]
[334046709,1722706239624,-500.0,0.00013698,2]
[334046710,1722706239634,-510.59911866,0.00013698,2]
[334046711,1722706239644,-508.30205105,0.00013698,2]
[334046712,1722706239655,-500.86351952,0.00013698,2]
[334046713,1722706239666,-510.83707425,0.00013698,2]
[334046714,1722706239677,-500.0,0.00013698,2]
[334046715,1722706239687,-500.0,0.00013698,2]
[334046716,1722706239698,-500.0,0.00013698,2]
[334046717,1722706239709,-500.0,0.00013698,2]
[334046718,1722706239719,-500.0,0.00013698,2]
[334046719,1722706239730,-500.0,0.00013698,2]
[334046720,1722706239739,-500.0,0.00013698,2]
[334046721,1722706239750,-500.0,0.00013698,2]
[334046722,1722706239760,-500.0,0.00013698,2]
[334046723,1722706239773,-500.0,0.00013698,2]
[334046724,1722706239784,-500.0,0.00013698,2]
[334046725,1722706239793,-421.6098017,0.00013698,2]
[334046726,1722706239803,-500.0,0.00013698,2]
[334046727,1722706239812,-500.0,0.00013698,2]
[334046728,1722706239823,-500.0,0.00013698,2]
[334046729,1722706239834,-500.0,0.00013698,2]
[334046730,1722706239844,-573.50308911,0.00013698,2]
[334046731,1722706239856,-500.0,0.00013698,2]
[334046732,1722706239868,-500.0,0.00013698,2]
[334046733,1722706239879,-500.0,0.00013698,2]
[334046734,1722706239889,-500.0,0.00013698,2]
[334046735,1722706239900,-500.0,0.00013698,2]
[334046736,1722706239910,-500.0,0.00013698,2]
[334046737,1722706239919,-500.0,0.00013698,2]
[334046738,1722706239929,-546.47776695,0.00013698,2]
[334046739,1722706239940,-511.2561908,0.00013698,2]
[334046740,1722706239951,-500.0,0.00013698,2]
[334046741,1722706239963,-500.0,0.00013698,2]
[334046742,1722706239974,-500.0,0.00013698,2]
[334046743,1722706239984,-450.83068183,0.00013698,2]
[334046744,1722706239994,-820.84,0.00013698,2]
[334046745,1722706240004,-500.0,0.00013698,2]
[334046746,1722706240013,-500.0,0.00013698,2]
[334046747,1722706240023,-500.0,0.00013698,2]
[334046748,1722706240033,-500.0,0.00013698,2]
[334046749,1722706240044,-500.0,0.00013698,2]
[334046750,1722706240059,-500.0,0.00013698,2]
[334046751,1722706240074,-500.0,0.00013698,2]
[334046752,1722706240087,-500.0,0.00013698,2]
[334046753,1722706240101,-500.0,0.00013698,2]
[334046754,1722706240112,-184.73005157,0.00013698,2]
[334046755,1722706240123,-553.16243449,0.00013698,2]
[334046756,1722706240137,-500.0,0.00013698,2]
[334046758,1722706240149,-500.0,0.00013698,2]
[334046759,1722706240162,-500.0,0.00013698,2]
[334046760,1722706240176,-500.0,0.00013698,2]
[334046761,1722706240190,-500.0,0.00013698,2]
[334046762,1722706240203,-500.0,0.00013698,2]
[334046763,1722706240215,-506.21796571,0.00013698,2]
[334046764,1722706240229,-502.96044572,0.00013698,2]
[334046765,1722706240242,-500.0,0.00013698,2]
[334046767,1722706240254,-491.3272288,0.00013698,2]
[334046768,1722706240266,-500.0,0.00013698,2]
[334046769,1722706240278,-500.0,0.00013698,2]
[334046770,1722706240290,-503.0025297,0.00013698,2]
[334046772,1722706240303,-500.0,0.00013698,2]
[334046773,1722706240316,-500.0,0.00013698,2]
[334046774,1722706240328,-500.0,0.00013698,2]
[334046775,1722706240341,-500.0,0.00013698,2]
[334046776,1722706240351,-500.0,0.00013698,2]
[334046778,1722706240361,-500.0,0.00013698,2]
[334046780,1722706240373,-500.0,0.00013698,2]
[334046783,1722706240385,-500.0,0.00013698,2]
[334046785,1722706240399,-500.0,0.00013698,2]
[334046787,1722706240411,-500.0,0.00013698,2]
[334046789,1722706240424,-502.4420582,0.00013698,2]
[334046792,1722706240438,-523.12365196,0.00013698,2]
[334046794,1722706240451,-500.0,0.00013698,2]
[334046797,1722706240464,-500.0,0.00013698,2]
[334046799,1722706240478,-500.0,0.00013698,2]
[334046802,1722706240491,-500.0,0.00013698,2]
[334046805,1722706240506,-500.0,0.00013698,2]
[334046806,1722706240519,-500.0,0.00013698,2]
[334046809,1722706240529,-500.0,0.00013698,2]
[334046811,1722706240539,-500.0,0.00013698,2]
[334046813,1722706240549,-500.0,0.00013698,2]
[334046815,1722706240560,-500.0,0.00013698,2]
[334046817,1722706240573,-500.0,0.00013698,2]
[334046819,1722706240586,-500.0,0.00013698,2]
[334046820,1722706240598,-500.0,0.00013698,2]
[334046821,1722706240610,-500.0,0.00013698,2]
[334046822,1722706240620,-500.0,0.00013698,2]
[334046823,1722706240633,-500.0,0.00013698,2]
[334046824,1722706240645,-503.99856236,0.00013698,2]
[334046825,1722706240656,-500.0,0.00013698,2]
[334046826,1722706240669,-500.0,0.00013698,2]
[334046827,1722706240680,-500.0,0.00013698,2]
[334046828,1722706240691,-500.0,0.00013698,2]
[334046829,1722706240701,-501.75326931,0.00013698,2]
[334046830,1722706240712,-500.0,0.00013698,2]
[334046831,1722706240724,-500.0,0.00013698,2]
[334046832,1722706240736,-503.94584499,0.00013698,2]